Cogmind - Beta 14 @@@ ROGUE MODE // 2024.10.03 @ 21:38:17 Player: Cereal Killer Result: Destroyed by Combat Programmer with EMDS Performance ------------- Evolutions (8) 4000 Regions Visited (29) 5800 Robots Destroyed (182) 910 Value Destroyed (8822) 8822 Prototype IDs (247) 4940 Alien Tech Used (12) 2400 Bonus (19068) 19068 TOTAL SCORE: 45940 Bonus ------- High Alert Combat Kills 749 Follower Combat Kills 1447 Entered Garrisons 200 Entered DSFs 500 Aligned with FarCom 300 Met Data Miner 300 Used Data Conduit 3000 Met Zhirov 300 Met Warlord at Base 500 MAIN.C Attacked Warlord 500 Warlord Defense Kills 1952 Found Hidden Lab 3000 Decrypted A0 Command 3000 Used Core Reset Matrix 3000 Pursued by Intercept 500 Friendly Fire -180 Cogmind --------- Core Integrity 0/1450 Matter 102/425 Energy 590/600 System Corruption 3% Temperature Cool (9) Movement Core (50) Location -2/Section 7 Parts ------- > --- POWER (2) -------- (None) > --- PROPULSION (6) --- (None) > --- UTILITY (11) ----- Advanced Coolant Injector Advanced Visual Processing Unit Improved System Shield Quantum Router Spacefold Activator > --- WEAPON (5) ------- (None) > --- INVENTORY (5) ---- Light Quantum Reactor Subatomic Replicator Terrabomb Plasma Lance Peak State ------------ > --- POWER ------------ Vortex Chain Reactor > --- PROPULSION ------- Armored Medium Treads Impulse Thruster Array Impulse Thruster Array > --- UTILITY ---------- Improved Coolant Injector Large Storage Unit Energy Well Improved Transmission Jammer Layered Medium Armor Plating Layered Medium Armor Plating Thermal Barrier Makeshift Hacking Suite Advanced Hacking Suite Improved System Shield > --- WEAPON ----------- Matter Neutralizer Vortex Cannon Helical Railgun Hardcell Cannon > --- INVENTORY -------- Reinforced Antimatter Reactor Improved Quantum Reactor Cooled Gravmag System Cooled Gravmag System Cooled Gravmag System Advanced Coolant Injector Improved Matter Compressor Transdimensional Reconstructor Railgun Improved Plasma Cutter RU-N14's Throwing Claymores v3 Plasma Lance [Rating: 151] Favorites ----------- Power Reinforced Ion Engine Engine Reinforced Ion Engine Power Core Enhanced Fission Core Reactor Improved Quantum Reactor Propulsion Heavy Treads Treads Heavy Treads Leg Carbon-fiber Leg Wheel Wheel Hover Unit Gravmag System Flight Unit Field Propulsion Drive Utility Large Storage Unit Device Improved Cooling System Storage Large Storage Unit Processor Core Analyzer Hackware Hacking Suite Protection Layered Medium Armor Plating Artifact Spacefold Activator Weapon Helical Railgun Energy Gun Medium Laser Energy Cannon Heavy Plasma Cannon Ballistic Gun Helical Railgun Ballistic Cannon Hardcell Cannon Launcher Heavy Rocket Launcher Special Weapon RU-N14's Throwing Claymores v3 Impact Weapon Powered Hammer Slashing Weapon Makeshift Axe Piercing Weapon Plasma Lance Special Melee Weapon Datajack Build | -11 -10 -10 -10 -9 -8 -7 -7 -7 -7 -6 -6 -6 -6 -5 -5 -5 -5 -4 -4 -4 -4 -4 -3 -3 -3 -3 -2 -2 -2 ------- Run | Yrd Mat Min Exi Min Mat Fac Low Low Dat Pro Fac DSF Gar Fac Upp Upp War Pro Fac Upp Upp Zhi Pro Res Arm Lab Res Qua Sec Slots Evolved 16 | . . . . . 4 2 . . . . 2 . . 2 . . . . 2 . . . . 2 . . 2 . . Power 1 | . . . . . . . . . . . . . . 1 . . . . . . . . . . . . . . . Propulsion 4 | . . . . . . . . . . . 2 . . 1 . . . . . . . . . . . . 1 . . Utility 9 | . . . . . 3 2 . . . . . . . . . . . . 1 . . . . 2 . . 1 . . Weapon 2 | . . . . . 1 . . . . . . . . . . . . . 1 . . . . . . . . . . Parts Attached 229 | 6 2 . 1 . 15 27 2 5 2 8 4 12 16 10 22 7 15 2 11 . 9 6 6 11 3 5 7 4 11 Power 23 | 1 . . . . 2 2 . . . . . 1 3 4 4 1 2 . . . . 1 . 1 1 . . . . Engine 13 | 1 . . . . 1 2 . . . . . 1 3 4 . 1 . . . . . . . . . . . . . Core 5 | . . . . . 1 . . . . . . . . . 4 . . . . . . . . . . . . . . Reactor 5 | . . . . . . . . . . . . . . . . . 2 . . . . 1 . 1 1 . . . . Propulsion 42 | 2 . . . . . 3 . . 2 3 . 4 4 2 6 1 3 . 1 . . . 2 3 . . 2 . 4 Treads 11 | . . . . . . . . . . . . . . . 5 1 2 . 1 . . . 2 . . . . . . Leg 2 | . . . . . . . . . . 2 . . . . . . . . . . . . . . . . . . . Wheel 10 | 2 . . . . . 3 . . 2 1 . . . . . . 1 . . . . . . . . . . . 1 Hover 6 | . . . . . . . . . . . . 4 . . . . . . . . . . . 1 . . 1 . . Flight 13 | . . . . . . . . . . . . . 4 2 1 . . . . . . . . 2 . . 1 . 3 Utility 83 | 1 2 . 1 . 5 10 . 4 . 3 3 4 3 2 6 2 3 . 5 . 3 3 1 7 1 2 3 4 5 Device 36 | . . . . . 2 3 . 2 . 3 2 1 1 . 3 1 3 . 1 . 3 1 1 4 1 1 . 1 2 Storage 14 | 1 1 . 1 . . . . . . . . 2 2 1 2 1 . . . . . 1 . . . . 1 1 . Processor 7 | . . . . . . . . 1 . . 1 1 . 1 . . . . . . . . . . . . 2 . 1 Hackware 6 | . . . . . . 1 . . . . . . . . . . . . 1 . . . . 2 . 1 . . 1 Protection 17 | . 1 . . . 3 6 . 1 . . . . . . 1 . . . 3 . . 1 . 1 . . . . . Artifact 3 | . . . . . . . . . . . . . . . . . . . . . . . . . . . . 2 1 Weapon 81 | 2 . . . . 8 12 2 1 . 2 1 3 6 2 6 3 7 2 5 . 6 2 3 . 1 3 2 . 2 Energy Gun 14 | 1 . . . . 1 . . . . . 1 2 5 1 . . . . . . 2 . . . . 1 . . . Energy Cannon 26 | . . . . . 6 5 . . . . . . . 1 4 . 1 . . . 2 1 2 . . 1 2 . 1 Ballistic Gun 15 | 1 . . . . . 2 1 . . . . . . . . 3 4 1 2 . . 1 . . . . . . . Ballistic Cannon 6 | . . . . . . 2 . . . . . 1 . . 1 . . . 1 . 1 . . . . . . . . Launcher 4 | . . . . . . . 1 . . 1 . . 1 . 1 . . . . . . . . . . . . . . Special Weapon 8 | . . . . . . . . . . . . . . . . . 2 1 2 . . . 1 . . 1 . . 1 Impact Weapon 1 | . . . . . . 1 . . . . . . . . . . . . . . . . . . . . . . . Slashing Weapon 3 | . . . . . 1 . . 1 . 1 . . . . . . . . . . . . . . . . . . . Piercing Weapon 2 | . . . . . . . . . . . . . . . . . . . . . 1 . . . 1 . . . . Special Melee Weapon 2 | . . . . . . 2 . . . . . . . . . . . . . . . . . . . . . . . Unidentified Prototypes 13 | . . . . . 2 1 . . . . . . . . . . 2 . 1 . . 1 . . 1 5 . . . Parts Lost 71 | . . . . . 1 5 . 2 1 10 . 8 6 1 6 3 . . 4 . 1 . 2 2 . . . . 19 Power 3 | . . . . . . 1 . . . . . 1 . . . . . . . . . . . . . . . . 1 Propulsion 27 | . . . . . . 1 . . 1 3 . 2 4 1 4 1 . . 1 . . . 2 . . . . . 7 Utility 30 | . . . . . 1 1 . 2 . 5 . 4 1 . 2 . . . 3 . . . . 2 . . . . 9 Weapon 11 | . . . . . . 2 . . . 2 . 1 1 . . 2 . . . . 1 . . . . . . . 2 Highest Loss Streak 9 | . . . . . 1 2 . 2 1 8 . 8 6 1 6 2 . . 3 . 1 . 1 1 . . . . 9 To Critical Strikes 1 | . . . . . . . . . . . . . . . . . . . . . 1 . . . . . . . . Average Slot Usage (%) 82 | . 96 100 100 100 91 84 84 84 92 92 70 60 66 66 68 78 86 94 87 89 91 92 85 75 68 67 66 64 48 Engine 3 | . 14 14 14 14 6 6 7 7 7 7 6 5 3 2 . 4 3 . . . . . . . . . . . . Core 1 | . . . . . 2 . . . . . . . . . 8 5 3 . . . . . . . . . . . . Reactor 2 | . . . . . . . . . . . . . . . . . 3 11 10 10 10 8 5 4 4 4 4 4 1 Treads 7 | . . . . . . . . . . . . . . . 12 13 15 23 20 21 21 21 17 9 . . . . . Wheel 5 | . 28 28 28 28 18 8 7 7 7 12 . . . . . . . . . . . . . . . . . . . Flight 2 | . . . . . . . . . . . . . 15 26 6 . . . . . . . . 3 9 9 8 12 8 Device 16 | . . . . . 16 17 15 20 23 23 20 8 5 5 11 19 25 29 19 10 13 15 15 18 25 23 20 18 10 Storage 9 | . 14 14 14 14 9 7 7 7 7 7 6 6 10 11 9 16 14 11 10 10 10 10 10 7 4 4 4 4 3 Processor 1 | . . . . . . . . . 7 7 11 9 13 11 4 . . . . . . . . . . . 3 4 3 Hackware 4 | . . . . . . 6 7 7 7 7 6 6 6 5 1 . . . 4 5 5 5 5 9 14 14 16 16 12 Protection 7 | . 10 14 14 14 14 14 15 9 7 3 . . . . . . . . 4 15 11 10 10 7 . . . . . Energy Gun 1 | . 14 14 14 14 6 . . . . . 4 2 2 1 . . . . . . 2 2 . . . . . . . Energy Cannon 4 | . . . . . 8 8 . . . . . . . 1 7 11 10 5 . . 2 7 9 6 . . . . . Ballistic Gun 6 | . 14 14 14 14 4 1 8 15 15 12 . . . . . 2 5 11 9 10 7 5 5 2 . . . . . Ballistic Cannon 1 | . . . . . . 1 5 . . . . 1 . . 3 2 . . 5 5 4 5 5 2 . . . . . Slashing Weapon 1 | . . . . . 4 . . 6 7 4 . . . . . . . . . . . . . . . . . . . Peak Build Rating 151 | 6 7 8 12 12 49 66 55 56 53 51 48 52 61 74 82 84 111 111 125 121 123 127 129 151 123 132 141 150 138 Average Rating 77 | 3 6 7 10 12 29 51 55 54 50 45 46 37 49 60 72 78 88 110 121 121 119 121 121 119 117 123 133 130 103 On Entrance 71 | . 6 7 8 12 12 46 55 55 53 47 34 48 49 52 66 82 76 111 111 121 121 119 127 117 106 117 128 133 128 Naked Turns 11 | . . . . . . . . . . . . . . . 11 . . . . . . . . . . . . . . Heaviest Build 147 | 12 20 20 30 30 66 80 70 67 51 55 39 39 42 56 84 96 116 115 147 143 143 125 119 120 32 31 28 35 30 Greatest Support 170 | 20 20 20 20 20 20 28 28 28 28 43 43 43 36 35 170 170 155 155 155 148 148 148 148 75 32 32 39 39 46 Greatest Overweight (x) 3 | . . . 1 1 3 2 2 2 2 3 . . 1 2 . 1 1 . 1 . . . 2 1 . . . . . Average Overweight (x) . | . . . . 1 1 1 2 1 1 1 . . . . . . . . . . . . . . . . . . . Largest Inventory Capacity 15 | 8 10 10 15 15 15 15 15 15 15 15 15 15 15 15 15 15 15 15 15 15 15 15 15 15 5 5 5 5 5 Average Capacity 13 | 6 9 10 11 15 15 15 15 15 15 15 15 13 15 15 14 15 15 15 15 15 15 15 15 12 5 5 5 5 5 Most Carried 15 | 3 7 8 10 10 15 15 15 15 14 15 10 15 15 15 15 15 15 15 15 15 15 15 15 15 5 5 5 5 5 Average Carried 12 | 1 4 7 9 10 14 14 15 14 13 13 9 9 12 13 9 13 14 14 13 15 14 14 14 11 4 4 4 5 4 Final Capacity 15 | 8 10 10 15 15 15 15 15 15 15 15 15 15 15 15 15 15 15 15 15 15 15 15 15 5 5 5 5 5 5 Final Carried 15 | 2 7 8 10 10 15 15 15 14 13 10 9 15 12 15 9 15 15 15 15 15 15 15 15 5 5 5 5 5 4 Class Distribution -------------------- 38% | Scavenger-Tank 29% | Mutant 11% | Scavenger-Mutant 4% | Scavenger-Gunner 4% | Hacker-Mutant 3% | Wizard-Mutant Dominant Class ---------------- Mutant | -10/Materials Mutant | -10/Mines Mutant | -10/Exiles Mutant | -9/Mines Assassin | -8/Materials Scavenger-Mutant | -7/Factory Mutant | -7/Lower Caves Mutant | -7/Lower Caves Mutant | -7/Data Miner Mutant | -6/Proximity Caves Scavenger-Mutant | -6/Factory Mutant | -6/DSF Mutant | -6/Garrison Mutant | -5/Factory Scavenger-Gunner | -5/Upper Caves Scavenger-Gunner | -5/Upper Caves Scavenger-Tank | -5/Warlord Scavenger-Tank | -4/Proximity Caves Scavenger-Tank | -4/Factory Scavenger-Tank | -4/Upper Caves Scavenger-Tank | -4/Upper Caves Scavenger-Tank | -4/Zhirov Scavenger-Tank | -3/Proximity Caves Hacker-Mutant | -3/Research Hacker-Mutant | -3/Armory Hacker-Mutant | -3/Lab Wizard-Mutant | -2/Research Wizard-Mutant | -2/Quarantine Hacker-Mutant | -2/Section 7 Resources | -11 -10 -10 -10 -9 -8 -7 -7 -7 -7 -6 -6 -6 -6 -5 -5 -5 -5 -4 -4 -4 -4 -4 -3 -3 -3 -3 -2 -2 -2 ----------- Run | Yrd Mat Min Exi Min Mat Fac Low Low Dat Pro Fac DSF Gar Fac Upp Upp War Pro Fac Upp Upp Zhi Pro Res Arm Lab Res Qua Sec Matter Collected 5550 | 173 151 66 . 36 208 412 131 368 119 184 . 56 99 267 296 88 271 100 1019 331 313 . 626 157 . . 12 . 67 Remotely . | . . . . . . . . . . . . . . . . . . . . . . . . . . . . . . Salvage Created 7050 | . 199 26 . . 615 1556 84 214 52 255 . 20 235 107 294 318 382 159 1188 280 429 . 424 93 . . 12 . 108 Parts 314 | . 21 1 . . 32 62 9 14 1 17 . . 11 8 17 9 10 3 43 13 19 . 12 . . . 2 . 10 Haulers Intercepted 4 | . . . . . 2 2 . . . . . . . . . . . . . . . . . . . . . . . Recyclers Shooed 1 | . . . . . . . . . . . . . . . . . . . 1 . . . . . . . . . . Parts Field Recycled . | . . . . . . . . . . . . . . . . . . . . . . . . . . . . . . Retrieved Matter . | . . . . . . . . . . . . . . . . . . . . . . . . . . . . . . Parts Self-Destructed 105 | . . . . . . . 9 17 . 14 . . . . 12 6 . 9 . 13 12 . 13 . . . . . . Prevented 3 | . . . . . . . . 1 . . . . . . . 2 . . . . . . . . . . . . . Kills | -11 -10 -10 -10 -9 -8 -7 -7 -7 -7 -6 -6 -6 -6 -5 -5 -5 -5 -4 -4 -4 -4 -4 -3 -3 -3 -3 -2 -2 -2 ------- Run | Yrd Mat Min Exi Min Mat Fac Low Low Dat Pro Fac DSF Gar Fac Upp Upp War Pro Fac Upp Upp Zhi Pro Res Arm Lab Res Qua Sec Combat Hostiles Destroyed 151 | . 7 2 . . 10 25 5 5 1 9 . 1 5 1 7 5 13 4 21 4 7 . 10 2 . . . . 7 Melee 6 | . . . . . . 2 . . . 1 . . . . . . . . 3 . . . . . . . . . . Guns 46 | . 7 2 . . 3 2 1 5 1 5 . 1 1 . . 1 2 1 8 3 1 . 2 . . . . . . Cannons 50 | . . . . . 1 12 . . . . . . . 1 7 3 1 2 7 1 6 . 7 2 . . . . . AOE 39 | . . . . . 3 3 4 . . 3 . . 4 . . . 10 1 3 . . . 1 . . . . . 7 Classes Destroyed 20 | . 5 . . . 3 4 . 2 . . . . . . . 1 3 1 . . 1 . . . . . . . . Worker 9 | . 1 . . . . 2 . . . . . . . . . . . . 4 . . . . . . . 1 . 1 Builder 10 | . 1 . . . 1 2 . . . . . . . 1 . . . . 4 . . . . . . . . . 1 Tunneler 1 | . . . . . . 1 . . . . . . . . . . . . . . . . . . . . . . . Hauler 4 | . . . . . 2 2 . . . . . . . . . . . . . . . . . . . . . . . Recycler 2 | . . . . . . 2 . . . . . . . . . . . . . . . . . . . . . . . Watcher 5 | . 1 . . . 1 . . . . . . . . . . . . . 2 . . . . . . . . . 1 Swarmer 35 | . 6 2 . . 2 . 4 1 . 7 . . . . 5 . . 1 . . . . . . . . . . 7 Grunt 62 | . 1 . . . 4 14 . 2 . 1 . . 4 . . 2 8 1 15 3 3 . 4 . . . . . . Brawler 2 | . . . . . . . . . . . . . . . . . . 1 . . . . 1 . . . . . . Duelist 5 | . . . . . . 1 . . . . . . . . . 1 . 1 . . 1 . 1 . . . . . . Sentry 16 | . . . . . 3 7 . . . 1 . . . 1 . . . . . 1 1 . 1 1 . . . . . Specialist 1 | . . . . . . . . . . . . . . . . . 1 . . . . . . . . . . . . Hunter 8 | . . . . . . . . . . . . . . . . 2 . . 4 . . . 2 . . . . . . Programmer 7 | . . . . . . 3 1 . . . . . . . 1 . . . 2 . . . . . . . . . . Heavy 2 | . . . . . 1 . . . . . . 1 . . . . . . . . . . . . . . . . . Behemoth 5 | . . . . . . . . 1 . . . . 1 . 1 . . . . . . . 1 1 . . . . . Enhanced Grunt 1 | . . . . . . . . . 1 . . . . . . . . . . . . . . . . . . . . Striker 2 | . . . . . . . . . . . . . . . . . 2 . . . . . . . . . . . . Executioner 2 | . . . . . . . . . . . . . . . . . 2 . . . . . . . . . . . . Decomposer 2 | . . . . . . . . . . 1 . . . . 1 . . . . . . . . . . . . . . Master Thief 2 | . . . . . . . . 1 . . . . . . . . . . . . 1 . . . . . . . . Mutant 1 | . . . . . . . . . . . . . . . . . . . . . 1 . . . . . . . . Best Kill Streak 10 | . 4 2 . . 7 6 4 2 1 4 . 1 4 2 5 2 10 3 8 3 4 . 5 1 . . 1 . 8 Combat Bots Only 10 | . 3 2 . . 5 6 4 2 1 4 . 1 4 1 5 2 10 3 4 3 4 . 5 1 . . . . 7 Max Kills in Single Turn 8 | . 2 1 . . 2 3 2 1 1 3 . 1 2 2 1 1 4 1 6 2 1 . 1 1 . . 1 . 8 Gunslinging . | . . . . . . . . . . . . . . . . . . . . . . . . . . . . . . Exploded 7 | . . . . . 2 2 2 . . 3 . . 2 . . . 4 1 2 . . . 1 . . . . . 7 Melee 1 | . . . . . . 1 . . . 1 . . . . . . . . 1 . . . . . . . . . . Uniques/NPCs Destroyed . | . . . . . . . . . . . . . . . . . . . . . . . . . . . . . . Combat | -11 -10 -10 -10 -9 -8 -7 -7 -7 -7 -6 -6 -6 -6 -5 -5 -5 -5 -4 -4 -4 -4 -4 -3 -3 -3 -3 -2 -2 -2 -------- Run | Yrd Mat Min Exi Min Mat Fac Low Low Dat Pro Fac DSF Gar Fac Upp Upp War Pro Fac Upp Upp Zhi Pro Res Arm Lab Res Qua Sec Hostile Shots Fired 1404 | . 21 3 . . 35 261 30 88 7 95 . 44 52 35 96 42 14 10 156 18 30 . 83 75 . . 13 7 189 Missed 524 | . 5 1 . . 11 103 9 38 3 30 . 24 17 21 21 9 3 3 47 9 10 . 28 37 . . 8 6 81 Damage Taken 14745 | . 147 15 . . 511 1649 275 854 138 904 . 534 847 298 1488 520 236 70 1430 123 251 . 757 821 . . 89 . 2788 Core 2921 | . 28 9 . . 27 178 14 113 66 121 . 190 194 135 118 82 12 9 77 . 24 . 24 175 . . 14 . 1311 Absorbed by Shields 702 | . . . . . . . . 45 48 193 . . . 13 . . 141 68 194 . . . . . . . . . . Reduced by Siege Mode 99 | . . . . . . . . . . . . . . . 99 . . . . . . . . . . . . . . Ignored by Resistances 1323 | . . . . . 12 . . . . . . . . . . 111 34 25 381 82 118 . 307 152 . . 43 . 58 Regen/Repaired (Parts) 591 | . . . . . . 148 . . . . . . . . . . 443 . . . . . . . . . . . . Core Remaining (%) 74 | 100 . . . 85 95 . . . . 29 . . 54 . . . . 64 . . . . 89 . . 79 . . . Volleys Fired 429 | . 20 3 . . 32 82 6 30 13 18 . 11 18 8 30 20 18 4 46 9 14 . 34 6 . . 3 . 4 Largest 4 | . 2 2 . . 3 3 2 2 2 2 . 2 2 2 3 3 3 3 3 3 4 . 4 4 . . 1 . 1 Hottest 281 | . 70 70 . . 250 250 76 56 56 56 . 117 225 173 241 241 238 166 166 166 281 . 258 258 . . 50 . 50 Shots Fired 916 | . 40 6 . . 65 140 12 62 26 35 . 16 23 16 56 56 44 10 123 28 43 . 84 24 . . 3 . 4 Gun 478 | . 40 6 . . 54 23 4 62 26 33 . 5 20 8 . 13 25 6 88 18 20 . 21 6 . . . . . Cannon 419 | . . . . . 11 117 6 . . . . 11 . 8 54 43 15 3 33 10 23 . 61 18 . . 3 . 3 Launcher 9 | . . . . . . . 2 . . 2 . . 3 . 2 . . . . . . . . . . . . . . Special 10 | . . . . . . . . . . . . . . . . . 4 1 2 . . . 2 . . . . . 1 Kinetic 519 | . 20 3 . . 25 36 10 62 26 33 . 11 . . 13 16 25 6 121 28 30 . 42 12 . . . . . Thermal 331 | . 20 3 . . 40 89 . . . . . 1 20 16 41 40 14 3 . . 12 . 26 6 . . . . . Explosive 19 | . . . . . . . 2 . . 2 . . 3 . 2 . 4 1 2 . . . 2 . . . . . 1 Electromagnetic 19 | . . . . . . 15 . . . . . 4 . . . . . . . . . . . . . . . . . Entropic 28 | . . . . . . . . . . . . . . . . . 1 . . . 1 . 14 6 . . 3 . 3 Robot Hit Streak 21 | . 4 4 . . 5 9 3 21 7 11 . 13 5 6 9 8 7 5 13 7 9 . 16 12 . . . . 15 Robot Miss Streak 5 | . 2 1 . . 3 4 3 2 1 3 . 2 1 1 4 3 2 1 5 3 2 . 4 2 . . . . . Penetration Max 2 | . . . . . . . . . . . . . . . . 1 1 . 2 1 2 . 1 . . . . . . Secondary Targets 2 | . . . . . . . . 1 1 . . . . . . . . . . . . . . . . . . . . Max Gunslinging Chain 1 | . . . . . . . . 1 1 . . . . . . . . . . . . . . . . . . . . Shots Hit Robots 575 | . 20 3 . . 40 105 5 53 19 30 . 12 11 8 26 34 25 5 74 16 25 . 39 16 . . 2 1 6 Core Hits 303 | . 11 2 . . 23 51 4 14 9 15 . 3 18 4 9 6 21 8 49 10 13 . 17 5 . . . . 11 Critical Kills 9 | . . . . . . 5 . . . . . . . . . 1 1 . 1 1 . . . . . . . . . Critical Parts Destroyed 14 | . 1 . . . . 3 . . . . . . . . . 3 . . 4 . 1 . 1 1 . . . . . Critical Strikes 41 | . 1 1 . . 1 8 . . . 2 . . . . 1 4 3 1 6 2 1 . 6 3 . . . . 1 Burn 2 | . . 1 . . 1 . . . . . . . . . . . . . . . . . . . . . . . . Meltdown 4 | . . . . . . 3 . . . . . . . . . 1 . . . . . . . . . . . . . Destroy 14 | . 1 . . . . . . . . . . . . . . 3 1 . 5 1 1 . 1 1 . . . . . Blast 4 | . . . . . . . . . . . . . . . 1 . . . 1 1 . . 1 . . . . . . Smash 5 | . . . . . . 5 . . . . . . . . . . . . . . . . . . . . . . . Sever 7 | . . . . . . . . . . 2 . . . . . . 2 1 . . . . 1 . . . . . 1 Sunder 5 | . . . . . . . . . . . . . . . . . . . . . . . 3 2 . . . . . Melee Attacks 84 | . . . . . 9 33 . . 1 10 . . . . . . . . . . 1 . . . 3 3 9 4 11 Impact 30 | . . . . . . 30 . . . . . . . . . . . . . . . . . . . . . . . Slashing 20 | . . . . . 9 . . . 1 10 . . . . . . . . . . . . . . . . . . . Piercing 31 | . . . . . . . . . . . . . . . . . . . . . 1 . . . 3 3 9 4 11 Sneak Attacks 15 | . . . . . 1 9 . . 1 1 . . . . . . . . . . . . . . . . 2 . 1 Combat Hostiles . | . . . . . . . . . . . . . . . . . . . . . . . . . . . . . . Follow-up Attacks . | . . . . . . . . . . . . . . . . . . . . . . . . . . . . . . Damage Inflicted 28100 | . 269 41 . . 1106 3406 496 1084 440 1147 . 354 1101 285 989 1048 3770 570 5124 750 1074 . 2414 889 . . 219 53 1471 Guns 7765 | . 269 41 . . 458 372 69 1084 365 454 . 122 329 140 . 101 525 61 2067 354 377 . 438 139 . . . . . Cannons 9592 | . . . . . 110 1736 38 . . . . 232 . 145 989 934 431 71 1441 396 697 . 1486 750 . . . . 136 Explosions 8153 | . . . . . 348 456 389 . . 302 . . 772 . . . 2671 404 1337 . . . 379 . . . . . 1095 Melee 1969 | . . . . . 190 842 . . 75 391 . . . . . . . . . . . . . . . . 219 53 199 Ramming 174 | . . . . . . . . . . . . . . . . 13 . . 161 . . . . . . . . . . Kinetic 10248 | . 131 15 . . 204 516 107 1084 365 454 . 232 . . 265 134 525 61 3508 750 764 . 829 304 . . . . . Thermal 6022 | . 138 26 . . 712 1812 . . . . . 22 329 285 724 901 346 71 . . 310 . 230 116 . . . . . Explosive 7383 | . . . . . . 34 389 . . 302 . . 772 . . . 2671 404 1337 . . . 379 . . . . . 1095 Electromagnetic 302 | . . . . . . 202 . . . . . 100 . . . . . . . . . . . . . . . . . Impact 842 | . . . . . . 842 . . . . . . . . . . . . . . . . . . . . . . . Slashing 1103 | . . . . . 190 . . . 75 391 . . . . . . 143 34 118 . . . 111 . . . . . 41 Piercing 471 | . . . . . . . . . . . . . . . . . . . . . . . . . . . 219 53 199 Entropic 1555 | . . . . . . . . . . . . . . . . . 85 . . . . . 865 469 . . . . 136 Highest Corruption 6 | . . . . . . 6 6 6 6 6 . . . 1 3 . . . 4 4 4 . . 1 1 1 . . 2 Average Corruption 4 | . . . . . . 2 6 6 6 6 . . . 1 2 . . . 3 4 3 . . 1 1 1 . . 1 Corruption Purged 7 | . . . . . . . . . . . . . . . 3 . . . . . 4 . . . . . . . . Corruption Blocked . | . . . . . . . . . . . . . . . . . . . . . . . . . . . . . . Effects 114 | . . . . . . 19 10 37 2 20 . . . 3 3 . . . 3 8 4 . . 1 1 . . . 3 Message Errors 24 | . . . . . . 2 2 11 . 2 . . . 2 1 . . . 1 1 . . . . 1 . . . 1 Matter Fused 16 | . . . . . . 3 1 4 . 5 . . . . . . . . . 1 1 . . . . . . . 1 Heat Flow Errors 21 | . . . . . . 8 1 5 . 5 . . . . . . . . . 1 1 . . . . . . . . Energy Discharges 17 | . . . . . . 1 3 6 . 2 . . . 1 . . . . 1 1 . . . 1 . . . . 1 Parts Rejected 3 | . . . . . . . . . . 1 . . . . 2 . . . . . . . . . . . . . . Parts Fused 2 | . . . . . . . 1 1 . . . . . . . . . . . . . . . . . . . . . Data Loss (minor) 16 | . . . . . . 2 . 5 1 2 . . . . . . . . 1 3 2 . . . . . . . . Data Loss (major) 3 | . . . . . . . . 3 . . . . . . . . . . . . . . . . . . . . . Misfires 8 | . . . . . . 1 2 2 . 2 . . . . . . . . . 1 . . . . . . . . . Alerts 3 | . . . . . . 2 . . 1 . . . . . . . . . . . . . . . . . . . . Weapon Failures 1 | . . . . . . . . . . 1 . . . . . . . . . . . . . . . . . . . Overload Shots 4 | . . . . . . . . . . . . . 4 . . . . . . . . . . . . . . . . Overflow Damage 1101 | . . . . . . 283 68 . . 78 . . 13 . 84 82 42 . 163 4 42 . 71 . . . 71 . 100 Projectiles 383 | . . . . . . 25 . . . . . . . . 84 82 1 . 139 4 42 . 6 . . . . . . Explosions 312 | . . . . . . 13 68 . . 64 . . 13 . . . 41 . 24 . . . 65 . . . . . 24 Melee 406 | . . . . . . 245 . . . 14 . . . . . . . . . . . . . . . . 71 . 76 Knockbacks 25 | . . . . . . 2 1 . . . . . . . 4 . . . 10 4 4 . . . . . . . . Impact 2 | . . . . . . 1 . . . . . . . . . . . . 1 . . . . . . . . . . Kinetic 21 | . . . . . . 1 1 . . . . . . . 3 . . . 9 3 4 . . . . . . . . Secondary 2 | . . . . . . . . . . . . . . . 1 . . . . 1 . . . . . . . . . Self-Inflicted Damage 29 | . . . . . . . . . . 29 . . . . . . . . . . . . . . . . . . . Shots 1 | . . . . . . . . . . 1 . . . . . . . . . . . . . . . . . . . Rammed 20 | . . . . . . . . . . . . . . . . 2 . . 18 . . . . . . . . . . Targets Rammed 23 | . . . . . . . . . . . . . . . . 2 . . 21 . . . . . . . . . . Kicked . | . . . . . . . . . . . . . . . . . . . . . . . . . . . . . . Crushed 3 | . . . . . . . . . . . . . . . . . . . 3 . . . . . . . . . . Highest Temperature 344 | . 114 37 . . 344 246 133 227 . 232 . . 264 130 166 21 9 . 294 191 197 . 252 195 . . . . 295 Average Temperature 83 | . 41 16 . . 66 79 74 99 . 89 . . 82 58 26 8 6 . 105 105 100 . 104 117 . . . . 115 Received Heat Transfer 2860 | . 42 . . . 153 663 . 159 . 87 . . 213 15 108 54 25 8 182 30 96 . 401 78 . . 27 . 519 Effects 2 | . . . . . . . . . . . . . 1 . . . . . 1 . . . . . . . . . . Energy Bleed 1 | . . . . . . . . . . . . . . . . . . . 1 . . . . . . . . . . Interference 1 | . . . . . . . . . . . . . 1 . . . . . . . . . . . . . . . . Siege Activations 1 | . . . . . . . . . . . . . . . 1 . . . . . . . . . . . . . . Total Turns 26 | . . . . . . . . . . . . . . . 26 . . . . . . . . . . . . . . Longest Duration 26 | . . . . . . . . . . . . . . . 26 . . . . . . . . . . . . . . Robots Corrupted 1 | . . . . . . 1 . . . . . . . . . . . . . . . . . . . . . . . Combat Hostiles . | . . . . . . . . . . . . . . . . . . . . . . . . . . . . . . Parts Fried 5 | . . . . . . 5 . . . . . . . . . . . . . . . . . . . . . . . Impact Corruptions 5 | . . . . . . 5 . . . . . . . . . . . . . . . . . . . . . . . Robots Melted 10 | . . . . . 3 6 . . . . . . . . . 1 . . . . . . . . . . . . . Combat Hostiles 10 | . . . . . 3 6 . . . . . . . . . 1 . . . . . . . . . . . . . Parts Melted 38 | . . 1 . . 6 21 . . . . . . . 1 1 5 2 . 1 . . . . . . . . . . Heat Transferred 12654 | . 407 148 . . 2894 4792 . . . . . 37 433 385 950 1250 475 100 . . 437 . 235 111 . . . . . Parts Sabotaged . | . . . . . . . . . . . . . . . . . . . . . . . . . . . . . . Parts Stolen 5 | . . . . . . . . 3 . . . . . . 1 1 . . . . . . . . . . . . . Parts Stripped . | . . . . . . . . . . . . . . . . . . . . . . . . . . . . . . Power Chain Reactions . | . . . . . . . . . . . . . . . . . . . . . . . . . . . . . . Alert | -11 -10 -10 -10 -9 -8 -7 -7 -7 -7 -6 -6 -6 -6 -5 -5 -5 -5 -4 -4 -4 -4 -4 -3 -3 -3 -3 -2 -2 -2 ------- Run | Yrd Mat Min Exi Min Mat Fac Low Low Dat Pro Fac DSF Gar Fac Upp Upp War Pro Fac Upp Upp Zhi Pro Res Arm Lab Res Qua Sec Peak Influence 875 | . 262 172 . . 386 840 . . . . 4 20 147 316 . . . . 875 . . . . 236 142 . 412 338 702 Initial 231 | . . 102 . . . 175 . . . . . 2 15 77 . . . . 167 . . . . . 123 . . 231 189 Average 315 | . 156 158 . . 110 523 . . . . . 12 78 164 . . . . 517 . . . . 77 137 . 89 297 428 Maximum Alert Level 3 | . 1 . . . 1 3 . . . . . . . 1 . . . . 3 . . . . 1 . . 2 1 3 Low Security (%) 41 | 100 46 100 . 100 68 9 . . . . 100 100 100 70 . . . . 4 . . . . 93 100 . 91 . 1 Level 1 25 | . 53 . . . 31 19 . . . . . . . 29 . . . . 27 . . . . 6 . . 5 100 59 Level 2 22 | . . . . . . 45 . . . . . . . . . . . . 49 . . . . . . . 2 . 36 Level 3 10 | . . . . . . 26 . . . . . . . . . . . . 18 . . . . . . . . . 3 Level 4 . | . . . . . . . . . . . . . . . . . . . . . . . . . . . . . . Level 5 . | . . . . . . . . . . . . . . . . . . . . . . . . . . . . . . High Security . | . . . . . . . . . . . . . . . . . . . . . . . . . . . . . . Max Security . | . . . . . . . . . . . . . . . . . . . . . . . . . . . . . . Squads Dispatched 39 | . 1 1 . . 6 10 . . . . . 1 . 3 . . . . 6 . . . 1 1 . . 2 . 7 Investigation 8 | . . . . . . 3 . . . . . . . 3 . . . . 1 . . . . . . . 1 . . Extermination 5 | . . . . . . 2 . . . . . . . . . . . . 1 . . . . 1 . . . . 1 Reinforcement 14 | . 1 . . . 4 2 . . . . . 1 . . . . . . 3 . . . . . . . 1 . 2 Assault 4 | . . 1 . . 1 . . . . . . . . . . . . . 1 . . . 1 . . . . . . Garrison 4 | . . . . . 1 3 . . . . . . . . . . . . . . . . . . . . . . . Intercept 4 | . . . . . . . . . . . . . . . . . . . . . . . . . . . . . 4 Searches Triggered 1 | . . . . . . . . . . . . . . . . . . . . . . . . . . . . . 1 Construction Impeded 4 | . . . . . 1 1 . . . . . . . . . . . . 2 . . . . . . . . . . Haulers Reinforced 1 | . . . . . . . . . . . . . . . . . . . . . . . . . . . 1 . . Active Scanning Responses . | . . . . . . . . . . . . . . . . . . . . . . . . . . . . . . Cargo Convoy Interrupts . | . . . . . . . . . . . . . . . . . . . . . . . . . . . . . . Stealth | -11 -10 -10 -10 -9 -8 -7 -7 -7 -7 -6 -6 -6 -6 -5 -5 -5 -5 -4 -4 -4 -4 -4 -3 -3 -3 -3 -2 -2 -2 --------- Run | Yrd Mat Min Exi Min Mat Fac Low Low Dat Pro Fac DSF Gar Fac Upp Upp War Pro Fac Upp Upp Zhi Pro Res Arm Lab Res Qua Sec Distress Signals 15 | . 2 . . . 1 . . . . . . . . . . . . . 1 . . . . . 1 . 7 . 3 Communications Jammed 39 | . . . . . . 2 . . . . . . . . . . . . . . . . . . 4 . 1 2 30 Distress Signals 36 | . . . . . . . . . . . . . . . . . . . . . . . . . 4 . 1 1 30 Times Spotted 393 | . 13 4 . . 22 39 6 17 4 11 . 6 14 9 8 9 51 8 28 4 9 . 17 23 4 . 8 5 74 Peak Tracking Total 16 | . 5 2 . . 6 5 4 4 3 4 . 5 11 6 5 2 14 5 5 3 4 . 5 16 6 . 4 2 13 Tactical Retreats 23 | . . 1 . . . 2 1 5 . 1 . . . 2 . . 1 . 3 . . . . 2 . . 3 1 1 Traps | -11 -10 -10 -10 -9 -8 -7 -7 -7 -7 -6 -6 -6 -6 -5 -5 -5 -5 -4 -4 -4 -4 -4 -3 -3 -3 -3 -2 -2 -2 ------- Run | Yrd Mat Min Exi Min Mat Fac Low Low Dat Pro Fac DSF Gar Fac Upp Upp War Pro Fac Upp Upp Zhi Pro Res Arm Lab Res Qua Sec Traps Triggered 3 | . . . . . . 2 . . . . . . . 1 . . . . . . . . . . . . . . . Indirectly . | . . . . . . . . . . . . . . . . . . . . . . . . . . . . . . Trap Hack Attempts 38 | . . . . . . 38 . . . . . . . . . . . . . . . . . . . . . . . Triggered . | . . . . . . . . . . . . . . . . . . . . . . . . . . . . . . Disarmed . | . . . . . . . . . . . . . . . . . . . . . . . . . . . . . . Reprogrammed 5 | . . . . . . 5 . . . . . . . . . . . . . . . . . . . . . . . Reused 1 | . . . . . . 1 . . . . . . . . . . . . . . . . . . . . . . . Traps Extracted . | . . . . . . . . . . . . . . . . . . . . . . . . . . . . . . Installed . | . . . . . . . . . . . . . . . . . . . . . . . . . . . . . . Triggered 22 | . . . . . . 1 . . . . . . . . . 2 19 . . . . . . . . . . . . Machines | -11 -10 -10 -10 -9 -8 -7 -7 -7 -7 -6 -6 -6 -6 -5 -5 -5 -5 -4 -4 -4 -4 -4 -3 -3 -3 -3 -2 -2 -2 ---------- Run | Yrd Mat Min Exi Min Mat Fac Low Low Dat Pro Fac DSF Gar Fac Upp Upp War Pro Fac Upp Upp Zhi Pro Res Arm Lab Res Qua Sec Machines Disabled 32 | . . . . . 1 9 . . . . . . . . . . 2 . 5 . 1 . . . 1 1 3 3 6 Max in Single Turn 4 | . . . . . 1 4 . . . . . . . . . . 1 . 1 . 1 . . . 1 1 1 1 2 Garrison Access 6 | . . . . . 1 1 . . . . . . . . . . . . 1 . . . . . . . 1 1 1 Machines Repaired . | . . . . . . . . . . . . . . . . . . . . . . . . . . . . . . Machines Dismantled . | . . . . . . . . . . . . . . . . . . . . . . . . . . . . . . Machines Sabotaged . | . . . . . . . . . . . . . . . . . . . . . . . . . . . . . . Overloaded Fab Kills . | . . . . . . . . . . . . . . . . . . . . . . . . . . . . . . Hacking | -11 -10 -10 -10 -9 -8 -7 -7 -7 -7 -6 -6 -6 -6 -5 -5 -5 -5 -4 -4 -4 -4 -4 -3 -3 -3 -3 -2 -2 -2 --------- Run | Yrd Mat Min Exi Min Mat Fac Low Low Dat Pro Fac DSF Gar Fac Upp Upp War Pro Fac Upp Upp Zhi Pro Res Arm Lab Res Qua Sec Machines Accessed 62 | . 1 . 2 . 2 11 . . 4 . 2 . 2 6 . . 3 . 3 . . 5 . 1 . 2 2 5 11 Terminals 31 | . 1 . . . 2 5 . . . . 1 . 2 5 . . . . 2 . . . . . . . 1 4 8 Fabricators 2 | . . . . . . 1 . . . . 1 . . . . . . . . . . . . . . . . . . Repair Stations 2 | . . . . . . 1 . . . . . . . . . . . . . . . . . . . . . . 1 Recycling Units 2 | . . . . . . . . . . . . . . 1 . . . . . . . . . 1 . . . . . Scanalyzers 2 | . . . . . . 1 . . . . . . . . . . . . . . . . . . . . . . 1 Garrison Access 7 | . . . . . . 3 . . . . . . . . . . . . 1 . . . . . . . 1 1 1 Total Hacks 221 | . 2 . 2 . 10 29 . . 29 . 5 . 2 20 . . 6 . 10 . . 14 . 2 . 21 10 27 32 Successful 146 | . 1 . 2 . 6 12 . . 29 . 1 . 1 12 . . 6 . 3 . . 14 . 2 . 21 3 17 16 Failed 75 | . 1 . . . 4 17 . . . . 4 . 1 8 . . . . 7 . . . . . . . 7 10 16 Catastrophic 12 | . . . . . 1 7 . . . . . . 1 . . . . . . . . . . . . . 2 . 1 Database Lockouts . | . . . . . . . . . . . . . . . . . . . . . . . . . . . . . . Manual 62 | . . . 1 . 8 8 . . . . . . 1 7 . . 1 . 7 . . . . 2 . . 4 9 14 Terminals 108 | . 2 . . . 10 15 . . . . 3 . 2 13 . . . . 7 . . . . . . . 7 25 24 Fabricators 4 | . . . . . . 2 . . . . 2 . . . . . . . . . . . . . . . . . . Repair Stations 5 | . . . . . . 2 . . . . . . . . . . . . . . . . . . . . . . 3 Recycling Units 9 | . . . . . . . . . . . . . . 7 . . . . . . . . . 2 . . . . . Scanalyzers 6 | . . . . . . 3 . . . . . . . . . . . . . . . . . . . . . . 3 Garrison Access 17 | . . . . . . 7 . . . . . . . . . . . . 3 . . . . . . . 3 2 2 Terminal Hacks 111 | . 1 . 2 . 4 5 . . 29 . 1 . . 3 . . 6 . 1 . . 14 . . . 21 2 10 12 Record 46 | . . . 1 . . . . . 11 . . . . 1 . . . . . . . 6 . . . 21 . 4 2 Part Schematic 12 | . . . . . . . . . 8 . . . . . . . . . . . . 4 . . . . . . . Robot Schematic 7 | . . . . . . . . . 7 . . . . . . . . . . . . . . . . . . . . Robot Analysis 3 | . . . . . 2 1 . . . . . . . . . . . . . . . . . . . . . . . Prototype ID Bank 12 | . . . . . 1 . . . 3 . . . . . . . 4 . . . . 4 . . . . . . . Open Door 5 | . . . . . . . . . . . . . . . . . 2 . . . . . . . . . . . 3 Open DSF 1 | . . . . . . . . . . . 1 . . . . . . . . . . . . . . . . . . Level Access Points 2 | . . . . . . . . . . . . . . . . . . . 1 . . . . . . . . 1 . Branch Access Points 5 | . 1 . . . . 1 . . . . . . . 1 . . . . . . . . . . . . 1 1 . Emergency Access Points 2 | . . . . . . . . . . . . . . . . . . . . . . . . . . . 1 1 . Machine Index 1 | . . . . . . . . . . . . . . . . . . . . . . . . . . . . . 1 Terminal Index 1 | . . . . . . . . . . . . . . . . . . . . . . . . . . . . 1 . Locate Traps 4 | . . . . . . 1 . . . . . . . . . . . . . . . . . . . . . 1 2 Security Status 1 | . . . . . . . . . . . . . . . . . . . . . . . . . . . . 1 . Hauler Manifests 1 | . . . . . . 1 . . . . . . . . . . . . . . . . . . . . . . . Zone Layout 6 | . . . . . 1 1 . . . . . . . 1 . . . . . . . . . . . . . . 3 Derelict Proto ID Bank 1 | . . . 1 . . . . . . . . . . . . . . . . . . . . . . . . . . Activate Exoskeleton 1 | . . . . . . . . . . . . . . . . . . . . . . . . . . . . . 1 Fabricator Hacks 1 | . . . . . . 1 . . . . . . . . . . . . . . . . . . . . . . . Network Status 1 | . . . . . . 1 . . . . . . . . . . . . . . . . . . . . . . . Repair Station Hacks 2 | . . . . . . 2 . . . . . . . . . . . . . . . . . . . . . . . Scan Component 1 | . . . . . . 1 . . . . . . . . . . . . . . . . . . . . . . . Repair 1 | . . . . . . 1 . . . . . . . . . . . . . . . . . . . . . . . Recycling Unit Hacks 7 | . . . . . . . . . . . . . . 7 . . . . . . . . . . . . . . . Recycle Component 3 | . . . . . . . . . . . . . . 3 . . . . . . . . . . . . . . . Process 2 | . . . . . . . . . . . . . . 2 . . . . . . . . . . . . . . . Retrieve Matter 2 | . . . . . . . . . . . . . . 2 . . . . . . . . . . . . . . . Scanalyzer . | . . . . . . . . . . . . . . . . . . . . . . . . . . . . . . Garrison Access Hacks 3 | . . . . . . 1 . . . . . . . . . . . . . . . . . . . . . 1 1 Seal Access 3 | . . . . . . 1 . . . . . . . . . . . . . . . . . . . . . 1 1 Unauthorized Hacks 22 | . . . . . 2 3 . . . . . . 1 2 . . . . 2 . . . . 2 . . 1 6 3 Terminals 14 | . . . . . 2 1 . . . . . . 1 2 . . . . 2 . . . . . . . . 5 1 Track 2 | . . . . . . . . . . . . . . . . . . . . . . . . . . . . 2 . Assimilate 2 | . . . . . 1 . . . . . . . . . . . . . . . . . . . . . . 1 . Botnet 6 | . . . . . 1 1 . . . . . . . 1 . . . . 2 . . . . . . . . 1 . Disrupt 3 | . . . . . . . . . . . . . . 1 . . . . . . . . . . . . . 1 1 Override 1 | . . . . . . . . . . . . . 1 . . . . . . . . . . . . . . . . Fabricators 1 | . . . . . . 1 . . . . . . . . . . . . . . . . . . . . . . . Haulers 1 | . . . . . . 1 . . . . . . . . . . . . . . . . . . . . . . . Repair Stations 1 | . . . . . . . . . . . . . . . . . . . . . . . . . . . . . 1 Mechanics 1 | . . . . . . . . . . . . . . . . . . . . . . . . . . . . . 1 Recycling Units 2 | . . . . . . . . . . . . . . . . . . . . . . . . 2 . . . . . Recyclers 1 | . . . . . . . . . . . . . . . . . . . . . . . . 1 . . . . . Mask 1 | . . . . . . . . . . . . . . . . . . . . . . . . 1 . . . . . Scanalyzers 2 | . . . . . . 1 . . . . . . . . . . . . . . . . . . . . . . 1 Researchers 1 | . . . . . . . . . . . . . . . . . . . . . . . . . . . . . 1 Extract 1 | . . . . . . 1 . . . . . . . . . . . . . . . . . . . . . . . Garrison Access 2 | . . . . . . . . . . . . . . . . . . . . . . . . . . . 1 1 . Watchers 1 | . . . . . . . . . . . . . . . . . . . . . . . . . . . . 1 . Jam 1 | . . . . . . . . . . . . . . . . . . . . . . . . . . . 1 . . Data Cores Recovered 1 | . . . . . 1 . . . . . . . . . . . . . . . . . . . . . . . . Used 1 | . . . . . 1 . . . . . . . . . . . . . . . . . . . . . . . . Hacking Detections 36 | . 1 . . . 2 11 . . . . 2 . 1 5 . . . . 3 . . . . 1 . . 2 3 5 Full Trace Events 6 | . . . . . . 2 . . . . . . . 3 . . . . 1 . . . . . . . . . . Feedback Events 2 | . . . . . . 1 . . . . . . . 1 . . . . . . . . . . . . . . . Corruption 2 | . . . . . . 1 . . . . . . . 1 . . . . . . . . . . . . . . . Feedback Blocked . | . . . . . . . . . . . . . . . . . . . . . . . . . . . . . . Robot Schematics Acquired 7 | . . . . . . . . . 7 . . . . . . . . . . . . . . . . . . . . Robots Built . | . . . . . . . . . . . . . . . . . . . . . . . . . . . . . . Authchips . | . . . . . . . . . . . . . . . . . . . . . . . . . . . . . . Time . | . . . . . . . . . . . . . . . . . . . . . . . . . . . . . . Total Robot Build Rating . | . . . . . . . . . . . . . . . . . . . . . . . . . . . . . . Part Schematics Acquired 15 | . . . . . . 3 . . 8 . . . . . . . . . . . . 4 . . . . . . . Parts Built . | . . . . . . . . . . . . . . . . . . . . . . . . . . . . . . Authchips . | . . . . . . . . . . . . . . . . . . . . . . . . . . . . . . Time . | . . . . . . . . . . . . . . . . . . . . . . . . . . . . . . Total Part Build Rating . | . . . . . . . . . . . . . . . . . . . . . . . . . . . . . . Parts Repaired 1 | . . . . . . 1 . . . . . . . . . . . . . . . . . . . . . . . Time 19 | . . . . . . 19 . . . . . . . . . . . . . . . . . . . . . . . Parts Recycled 3 | . . . . . . . . . . . . . . 3 . . . . . . . . . . . . . . . Recycled Matter 69 | . . . . . . . . . . . . . . 69 . . . . . . . . . . . . . . . Retrieved Matter 69 | . . . . . . . . . . . . . . 69 . . . . . . . . . . . . . . . Retrieved Components . | . . . . . . . . . . . . . . . . . . . . . . . . . . . . . . Parts Scanalyzed . | . . . . . . . . . . . . . . . . . . . . . . . . . . . . . . Part Schematics Acquired . | . . . . . . . . . . . . . . . . . . . . . . . . . . . . . . Parts Damaged . | . . . . . . . . . . . . . . . . . . . . . . . . . . . . . . Bothacking | -11 -10 -10 -10 -9 -8 -7 -7 -7 -7 -6 -6 -6 -6 -5 -5 -5 -5 -4 -4 -4 -4 -4 -3 -3 -3 -3 -2 -2 -2 ------------ Run | Yrd Mat Min Exi Min Mat Fac Low Low Dat Pro Fac DSF Gar Fac Upp Upp War Pro Fac Upp Upp Zhi Pro Res Arm Lab Res Qua Sec Used RIF Installer . | . . . . . . . . . . . . . . . . . . . . . . . . . . . . . . Robots Hacked 1 | . . . . . . 1 . . . . . . . . . . . . . . . . . . . . . . . Non-combat 1 | . . . . . . 1 . . . . . . . . . . . . . . . . . . . . . . . Combat . | . . . . . . . . . . . . . . . . . . . . . . . . . . . . . . Robot Hacks Applied 3 | . . . . . . 3 . . . . . . . . . . . . . . . . . . . . . . . no_distress 1 | . . . . . . 1 . . . . . . . . . . . . . . . . . . . . . . . find_fabricator 1 | . . . . . . 1 . . . . . . . . . . . . . . . . . . . . . . . find_dsf 1 | . . . . . . 1 . . . . . . . . . . . . . . . . . . . . . . . Relay Couplers Released 1 | . . . . . . . . . . . . . . . . . . . 1 . . . . . . . . . . Machine Destruction 1 | . . . . . . . . . . . . . . . . . . . 1 . . . . . . . . . . Fabnet Peak Effective % . | . . . . . . . . . . . . . . . . . . . . . . . . . . . . . . Robots Rewired 7 | . . . . . . . . . . . . . . . . . 5 . 1 . . . 1 . . . . . . Allies Hacked . | . . . . . . . . . . . . . . . . . . . . . . . . . . . . . . Hacks Repelled . | . . . . . . . . . . . . . . . . . . . . . . . . . . . . . . Allies | -11 -10 -10 -10 -9 -8 -7 -7 -7 -7 -6 -6 -6 -6 -5 -5 -5 -5 -4 -4 -4 -4 -4 -3 -3 -3 -3 -2 -2 -2 -------- Run | Yrd Mat Min Exi Min Mat Fac Low Low Dat Pro Fac DSF Gar Fac Upp Upp War Pro Fac Upp Upp Zhi Pro Res Arm Lab Res Qua Sec Total Allies 13 | . . 4 . . 1 . . . . . . . . . . . 5 . 1 . . . 1 . . . . 1 . Largest Group 6 | . . 4 4 4 4 . . . . . . . . . . . 5 5 6 . . . 1 . . . . 1 . Highest-Rated Group 315 | . . 71 71 71 71 . . . . . . . . . . . 266 266 315 . . . 64 . . . . 26 . Highest-Rated Ally 68 | . . 31 31 31 31 . . . . . . . . . . . 68 68 68 . . . 64 . . . . 26 . Total Orders . | . . . . . . . . . . . . . . . . . . . . . . . . . . . . . . Ally Attacks 190 | . . . . . 47 22 . . 17 . . . . . . . 72 6 20 . . . 6 . . . . . . Total Damage 7089 | . . . . . 649 1016 . . 968 . . . . . . . 3308 296 650 . . . 202 . . . . . . Kills 38 | . . . . . 6 6 . . 3 . . . . . . . 14 5 2 . . . 2 . . . . . . Allies Corrupted . | . . . . . . . . . . . . . . . . . . . . . . . . . . . . . . Allies Melted 2 | . . . . . . . . . . . . . . . . . . . . . . . . . . . 2 . . Turrets Deployed 2 | . . . . . . 1 . . 1 . . . . . . . . . . . . . . . . . . . . Intel | -11 -10 -10 -10 -9 -8 -7 -7 -7 -7 -6 -6 -6 -6 -5 -5 -5 -5 -4 -4 -4 -4 -4 -3 -3 -3 -3 -2 -2 -2 ------- Run | Yrd Mat Min Exi Min Mat Fac Low Low Dat Pro Fac DSF Gar Fac Upp Upp War Pro Fac Upp Upp Zhi Pro Res Arm Lab Res Qua Sec Robot Analysis Total 148 | . . . . . 2 1 . . 145 . . . . . . . . . . . . . . . . . . . . Derelict Logs Recovered 12 | . . 1 . . . . . 3 . 2 . . . . . 2 . 1 . 1 2 . . . . . . . . Drone Launches . | . . . . . . . . . . . . . . . . . . . . . . . . . . . . . . Drone Recoveries . | . . . . . . . . . . . . . . . . . . . . . . . . . . . . . . Exploration | -11 -10 -10 -10 -9 -8 -7 -7 -7 -7 -6 -6 -6 -6 -5 -5 -5 -5 -4 -4 -4 -4 -4 -3 -3 -3 -3 -2 -2 -2 ------------- Run | Yrd Mat Min Exi Min Mat Fac Low Low Dat Pro Fac DSF Gar Fac Upp Upp War Pro Fac Upp Upp Zhi Pro Res Arm Lab Res Qua Sec Turns Passed 14889 | 33 261 383 286 29 576 1820 452 1445 143 578 126 130 263 402 632 564 1523 373 612 451 590 253 1378 306 78 167 207 170 658 Spaces Moved 11326 | 27 238 438 264 27 396 1081 334 1053 92 452 100 113 308 586 480 298 790 209 244 257 326 143 626 266 145 281 393 402 957 Core 52 | 6 . . . . . . . . . . . 3 . . 8 . . . . . . . . . . . . . 35 Treads 3204 | . . . . . . . . . . . . . . . 239 298 790 209 244 257 326 143 626 72 . . . . . Legs 198 | . . . . . . . . . . 84 100 14 . . . . . . . . . . . . . . . . . Wheels 4312 | 21 238 438 264 27 396 1081 334 1053 92 368 . . . . . . . . . . . . . . . . . . . Hover 214 | . . . . . . . . . . . . 96 118 . . . . . . . . . . . . . . . . Flight 3323 | . . . . . . . . . . . . . 190 586 233 . . . . . . . . 194 145 281 393 402 899 Fastest Speed 31 | 50 80 80 80 95 95 110 130 115 110 95 120 48 36 31 31 160 160 162 162 162 162 162 162 42 42 42 37 37 34 Average Speed 106 | 73 80 80 82 95 104 123 130 128 113 111 120 57 44 40 95 160 175 162 165 162 162 162 199 97 42 42 41 37 37 Slowest Speed 330 | 80 80 80 95 95 125 130 130 130 115 125 120 120 116 199 160 240 240 162 243 162 162 162 330 246 42 42 42 37 50 Overloaded Moves . | . . . . . . . . . . . . . . . . . . . . . . . . . . . . . . Propulsion Burnouts . | . . . . . . . . . . . . . . . . . . . . . . . . . . . . . . Robots Hopped 23 | . . . . . . . . . . . . . . 3 . . . . . . . . . 18 . . . . 2 Cave-ins Triggered . | . . . . . . . . . . . . . . . . . . . . . . . . . . . . . . Teleports 37 | . . . . . . . . . . . . . . . . . . . . . . . . . 1 . . . 36 Spacefolds 9 | . . . . . . . . . . . . . . . . . . . . . . . . . . . . . 9 Exploration Rate (%) 48 | 3 52 76 62 16 39 30 57 94 79 68 4 93 37 21 67 49 89 37 8 42 47 60 61 12 13 96 18 41 77 Regions Visited 29 Branch Regions 19 Pre-discovered Areas 33 | . . 1 1 . . . . . 26 1 . . . . . . . . . . 1 3 . . . . . . . Known Exits Taken 7 | . 1 . . . . 1 . . . . 1 . . 1 . . . . . . . . 1 1 . . 1 . . Unknown Exits Taken 20 | 1 . 1 1 1 1 . 1 1 1 1 . . . . 1 1 1 1 1 1 1 1 . . 1 1 . 1 . Scrap Searched 19 | . . 1 . 1 . . 1 4 . . . . . . 1 3 . 1 . 1 4 . 2 . . . . . . Spaces Dug 71 | . . . . . 3 15 . . . . . . . 4 15 . . . 8 . . . 13 . 2 . 7 . 4 Terrain Destroyed 502 | . . . . . 16 61 17 . . 28 . . 12 5 48 16 76 15 95 12 16 . 59 7 2 . 7 . 10 Melee 24 | . . . . . 3 9 . . . . . . . . . . . . . . . . . . 2 . 7 . 3 Projectile 211 | . . . . . . 7 2 . . . . . 1 5 23 16 20 5 57 12 16 . 39 7 . . . . 1 AOE 267 | . . . . . 13 45 15 . . 28 . . 11 . 25 . 56 10 38 . . . 20 . . . . . 6 Terrain Rammed . | . . . . . . . . . . . . . . . . . . . . . . . . . . . . . . Walls Destroyed . | . . . . . . . . . . . . . . . . . . . . . . . . . . . . . . Machines Disabled . | . . . . . . . . . . . . . . . . . . . . . . . . . . . . . . Actions | -11 -10 -10 -10 -9 -8 -7 -7 -7 -7 -6 -6 -6 -6 -5 -5 -5 -5 -4 -4 -4 -4 -4 -3 -3 -3 -3 -2 -2 -2 --------- Run | Yrd Mat Min Exi Min Mat Fac Low Low Dat Pro Fac DSF Gar Fac Upp Upp War Pro Fac Upp Upp Zhi Pro Res Arm Lab Res Qua Sec Total 13216 | 40 268 464 335 30 485 1386 341 1097 110 491 105 162 413 733 608 340 900 235 334 272 359 166 716 289 157 323 420 417 1220 Wait 726 | . 1 23 61 4 10 80 . 2 . 1 . 4 60 93 44 . 9 20 5 5 3 . 42 1 . 26 3 1 228 Move 11242 | 26 237 437 263 26 395 1080 333 1052 91 451 99 112 306 579 479 297 789 208 243 256 325 142 625 235 144 280 392 401 939 Hop 17 | . . . . . . . . . . . . . . 3 . . . . . . . . . 12 . . . . 2 Pick Up 184 | 8 7 1 5 . 12 18 . 6 2 3 2 19 4 12 19 13 10 1 5 1 2 8 3 4 3 1 . 1 14 Fast Attach 77 | . . . . . 8 11 . 2 . . . 3 . 3 5 1 6 . 2 . 6 2 2 3 2 7 6 4 4 Attach 130 | 6 2 . . . 4 13 . 3 2 6 3 9 14 6 16 6 2 1 4 . 1 2 3 8 1 1 1 . 16 Detach 29 | . . . . . 1 5 . . . . . . 7 4 4 . 2 . . . 1 . . 2 . 1 1 . 1 Swap 36 | . . . 1 . 3 3 2 . . 2 1 . 2 1 1 . 7 1 5 . 2 3 1 . 1 . . . . Drop 135 | . 1 . 5 . 11 23 . 2 1 . . 4 2 8 5 1 17 . 1 1 4 9 3 18 3 4 5 6 1 Fire 429 | . 20 3 . . 32 82 6 30 13 18 . 11 18 8 30 20 18 4 46 9 14 . 34 6 . . 3 . 4 Melee 84 | . . . . . 9 33 . . 1 10 . . . . . . . . . . 1 . . . 3 3 9 4 11 Ram . | . . . . . . . . . . . . . . . . . . . . . . . . . . . . . . Kick . | . . . . . . . . . . . . . . . . . . . . . . . . . . . . . . Crush 23 | . . . . . . . . . . . . . . . . 2 . . 21 . . . . . . . . . . Escape Stasis 16 | . . . . . . . . . . . . . . 16 . . . . . . . . . . . . . . . Rewire 50 | . . . . . . . . . . . . . . . 5 . 40 . 2 . . . 3 . . . . . . Trap 38 | . . . . . . 38 . . . . . . . . . . . . . . . . . . . . . . . Miscellaneous . | . . . . . . . . . . . . . . . . . . . . . . . . . . . . . . Route ------- -11/Scrapyard -10/Materials (discovered 3 exits: [*Mat] / *Min x2) -10/Mines (discovered 3 exits: [*Mat x2] / *Exi) -10/Exiles -9/Mines -8/Materials (discovered 2 exits: *Fac x2) -7/Factory (discovered 2 exits: *Low x2) -7/Lower Caves -7/Lower Caves (discovered 2 exits: *Fac / *Dat) -7/Data Miner -6/Proximity Caves -6/Factory (discovered 2 exits: Fac / DSF) -6/DSF -6/Garrison (discovered 3 exits: *Fac x3) -5/Factory (discovered 2 exits: *Upp x2) -5/Upper Caves -5/Upper Caves -5/Warlord -4/Proximity Caves -4/Factory (discovered 7 exits: *Res x4 / [*Upp] / Ext x2) -4/Upper Caves -4/Upper Caves -4/Zhirov -3/Proximity Caves -3/Research -3/Armory -3/Lab -2/Research (discovered 2 exits: *Qua x2) -2/Quarantine (discovered 2 exits: Acc / *Sec) -2/Section 7 (discovered 1 exit: *Acc) History --------- Turn | Location | Event 21 | -11/Scrapyard | Discovered new exit (range 16) 34 | -11/Scrapyard | Entered Materials 103 | -10/Materials | Discovered new exit (range 5) 202 | -10/Materials | Discovered new exit (range 7) 244 | -10/Materials | Identified exit to Mines 295 | -10/Materials | Entered Mines 305 | -10/Mines | Build established: Mutant 319 | -10/Mines | Learned location of Recycling (-8) 321 | -10/Mines | Discovered new exit (range 7) 397 | -10/Mines | Met a Derelict bent on vengeance 547 | -10/Mines | Assisted by bots powering up and referring to "LRC-V3" 641 | -10/Mines | Met a Derelict testing a Signal Generator 642 | -10/Mines | Discovered new exit (range 8) 649 | -10/Mines | Found Signal Generator 655 | -10/Mines | Deemed a non-threat by the Exiles lab entrance 655 | -10/Mines | Discovered new exit (range 5) 678 | -10/Mines | Entered Exiles 678 | -10/Exiles | Accompanied by 4 allies 698 | -10/Exiles | Met 8R-AWN 711 | -10/Exiles | Met EX-HEX 735 | -10/Exiles | Met EX-BIN 745 | -10/Exiles | Aligned with FarCom system 746 | -10/Exiles | Given EX-Vault access code 765 | -10/Exiles | Opened EX-Vault 771 | -10/Exiles | Found Firepult 775 | -10/Exiles | Found Deploy-a-Sentry 776 | -10/Exiles | Found Deploy-a-Sentry 778 | -10/Exiles | Found Deploy-a-Sentry 781 | -10/Exiles | Found Chronowheel 809 | -10/Exiles | Warned to stay clear of 0b10 Research branches 823 | -10/Exiles | Exiles lab attacked by MAIN.C 886 | -10/Exiles | Learned location of Zion (-6) 930 | -10/Exiles | Discovered new exit (range 12) 964 | -10/Exiles | Stole three prototypes: Chronowheel, Firepult, Deploy-a-Sentry 964 | -10/Exiles | Entered Mines 964 | -9/Mines | Accompanied by 4 allies 971 | -9/Mines | Discovered new exit (range 16) 993 | -9/Mines | Entered Materials 993 | -8/Materials | Accompanied by 4 allies 993 | -8/Materials | Evolved 4 slots: Utility x3, Weapon x1 1057 | -8/Materials | Lost 3 allies 1366 | -8/Materials | Discovered new exit (range 16) 1539 | -8/Materials | Discovered new exit (range 3) 1551 | -8/Materials | Garrison activated, responded to threat 1569 | -8/Materials | Entered Factory 1569 | -7/Factory | Evolved 2 slots: Utility x2 1571 | -7/Factory | FarCom data flow suspended 1694 | -7/Factory | Discovered new exit (range 11) 2020 | -7/Factory | Build established: Scavenger-Tank 2215 | -7/Factory | Repaired Imp. Light Armor Plating 2300 | -7/Factory | Identified exit to Lower Caves 2400 | -7/Factory | Build established: Scavenger-Mutant 2514 | -7/Factory | DAS Turret deployed 3389 | -7/Factory | Entered Lower Caves 3486 | -7/Lower Caves | Attracted the attention of an 0b10 checkpoint 3657 | -7/Lower Caves | Build established: Mutant 3804 | -7/Lower Caves | Discovered new exit (range 16) 3841 | -7/Lower Caves | Entered another Lower Caves area 3844 | -7/Lower Caves | Discovered new exit (range 14) 3984 | -7/Lower Caves | Learned location of 1 exit from Factory 4202 | -7/Lower Caves | Encountered a Warlord checkpoint 4265 | -7/Lower Caves | Spotted S3-0ZE(f) 4266 | -7/Lower Caves | Encountered a Master Thief 4266 | -7/Lower Caves | Spotted 45-6EA(f) 4267 | -7/Lower Caves | Encountered a Master Thief 4267 | -7/Lower Caves | Spotted 2W-OO6(f) 4267 | -7/Lower Caves | Deploy-a-Sentry stolen by Master Thief 4268 | -7/Lower Caves | Encountered a Master Thief 4268 | -7/Lower Caves | Deploy-a-Sentry stolen by Master Thief 4268 | -7/Lower Caves | Destroyed S3-0ZE(f) 4268 | -7/Lower Caves | Firepult stolen by Master Thief 4390 | -7/Lower Caves | Attracted the attention of an 0b10 checkpoint 4466 | -7/Lower Caves | Discovered new exit (range 3) 4808 | -7/Lower Caves | Lost 3 allies 4916 | -7/Lower Caves | Spotted B-75 Beast 5165 | -7/Lower Caves | Destroyed B-75 Beast 5286 | -7/Lower Caves | Entered Data Miner 5286 | -7/Data Miner | Discovered new exit (range 6) 5308 | -7/Data Miner | Met Data Miner 5328 | -7/Data Miner | Learned location of Section 7 (-2) 5328 | -7/Data Miner | Acquired the access code to Warlord's prototype stash 5347 | -7/Data Miner | Received God Mode back door access code from Data Miner 5356 | -7/Data Miner | Interfaced with the Data Conduit 5361 | -7/Data Miner | DAS Turret deployed 5376 | -7/Data Miner | Core integrity fell below 50% 5429 | -7/Data Miner | Entered Proximity Caves 5431 | -6/Proximity Caves | Attracted the attention of an 0b10 checkpoint 5464 | -6/Proximity Caves | Learned Factory garrison access intel 5881 | -6/Proximity Caves | Spotted B-75 Beast 5938 | -6/Proximity Caves | Lost 8 parts (3n3u2w) 5997 | -6/Proximity Caves | Discovered new exit (range 10) 6007 | -6/Proximity Caves | Entered Factory 6007 | -6/Factory | Evolved 2 slots: Propulsion x2 6008 | -6/Factory | Identified exit to Factory 6009 | -6/Factory | Loaded intel: 244 machine locations 6010 | -6/Factory | Loaded intel: 4 garrison access locations 6132 | -6/Factory | Identified exit to DSF 6133 | -6/Factory | Entered DSF 6134 | -6/DSF | Loaded intel: 2 machine locations 6171 | -6/DSF | Additional patrols routed to DSF 6203 | -6/DSF | Lost 8 parts (1p2n4u1w) 6254 | -6/DSF | Discovered new exit (range 15) 6263 | -6/DSF | Entered Garrison 6264 | -6/Garrison | Loaded intel: 26 machine locations 6314 | -6/Garrison | Spotted B-75 Beast 6323 | -6/Garrison | Triggered checkpoint 6325 | -6/Garrison | Triggered checkpoint 6370 | -6/Garrison | Destroyed B-75 Beast 6399 | -6/Garrison | Lost 6 parts (4n1u1w) 6526 | -6/Garrison | Entered Factory 6526 | -5/Factory | Evolved 2 slots: Power x1, Propulsion x1 6527 | -5/Factory | Loaded intel: 282 machine locations 6581 | -5/Factory | Identified exit to Upper Caves 6687 | -5/Factory | Spotted B-75 Beast 6928 | -5/Factory | Entered Upper Caves 6928 | -5/Upper Caves | Spotted Q5-DB2(f) 6930 | -5/Upper Caves | Encountered a Master Thief 6975 | -5/Upper Caves | Chronowheel stolen by Master Thief 7048 | -5/Upper Caves | Spotted B-75 Beast 7091 | -5/Upper Caves | Destroyed B-75 Beast 7093 | -5/Upper Caves | Released all parts (8) 7119 | -5/Upper Caves | Lost 6 parts (4n2u) 7462 | -5/Upper Caves | Discovered new exit (range 5) 7486 | -5/Upper Caves | Build established: Scavenger-Gunner 7560 | -5/Upper Caves | Entered another Upper Caves area 7560 | -5/Upper Caves | Spotted ZZ-AVR(f) 7560 | -5/Upper Caves | Spotted C5-K7Z(f) 7561 | -5/Upper Caves | Enh. Fission Core stolen by Master Thief 7562 | -5/Upper Caves | Encountered a Master Thief 7783 | -5/Upper Caves | Learned Factory stockpile data 8077 | -5/Upper Caves | Learned Factory emergency access door positions 8104 | -5/Upper Caves | Discovered new exit (range 10) 8124 | -5/Upper Caves | Entered Warlord 8240 | -5/Warlord | Build established: Scavenger-Tank 8340 | -5/Warlord | Found Prototype Special Weapon 8341 | -5/Warlord | Identified RU-N14's Throwing Claymores v3 8345 | -5/Warlord | Found RU-N14's Throwing Claymores v3 8350 | -5/Warlord | Found RU-N14's Throwing Claymores v3 8692 | -5/Warlord | Visited the Vortex Lab 8704 | -5/Warlord | Warlord's base attacked by MAIN.C 8710 | -5/Warlord | Found Prototype Energy Cannon 8710 | -5/Warlord | Identified Vortex Cannon 8715 | -5/Warlord | Found Vortex Cannon 9054 | -5/Warlord | Warlord forces counterattacked 9091 | -5/Warlord | Spotted Executioner 9108 | -5/Warlord | Destroyed Executioner 9124 | -5/Warlord | Lost 6 allies 9154 | -5/Warlord | Found Prototype Ballistic Cannon 9158 | -5/Warlord | Spotted Executioner 9158 | -5/Warlord | Spotted Executioner 9161 | -5/Warlord | Spotted Executioner 9179 | -5/Warlord | Destroyed Executioner 9202 | -5/Warlord | Lost 15 allies 9215 | -5/Warlord | Spotted Striker 9223 | -5/Warlord | P-70 Sage assimilated allied TW-0CF(g) 9223 | -5/Warlord | Spotted Striker 9238 | -5/Warlord | Destroyed Striker 9277 | -5/Warlord | Lost 5 allies 9379 | -5/Warlord | Warlord base infiltrated, sounded retreat 9388 | -5/Warlord | Met Warlord 9409 | -5/Warlord | Opened Warlord's prototype stash 9415 | -5/Warlord | Found Vortex Chain Reactor 9423 | -5/Warlord | Found Thermal Barrier 9465 | -5/Warlord | Spotted Striker 9470 | -5/Warlord | Allies destroyed Striker 9607 | -5/Warlord | Spotted Executioner 9609 | -5/Warlord | Spotted Striker 9619 | -5/Warlord | Destroyed Striker 9629 | -5/Warlord | Discovered new exit (range 12) 9640 | -5/Warlord | Destroyed 10 combat bots 9647 | -5/Warlord | Entered Proximity Caves 9647 | -4/Proximity Caves | Accompanied by 5 allies 9651 | -4/Proximity Caves | Found DCF Scrap (13 items) 9656 | -4/Proximity Caves | Learned Research emergency access door positions 9844 | -4/Proximity Caves | Attracted the attention of an 0b10 checkpoint 10004 | -4/Proximity Caves | Discovered new exit (range 8) 10020 | -4/Proximity Caves | Entered Factory 10020 | -4/Factory | Accompanied by 5 allies 10020 | -4/Factory | Evolved 2 slots: Utility x1, Weapon x1 10021 | -4/Factory | Identified exit to Extension 10021 | -4/Factory | Identified Hvy. Autocannon 10024 | -4/Factory | Loaded intel: 258 machine locations 10074 | -4/Factory | Identified exit to Research 10373 | -4/Factory | Lost 6 allies 10449 | -4/Factory | Lost 3 parts (1n2u) 10589 | -4/Factory | Discovered new exit (range 14) 10632 | -4/Factory | Entered Upper Caves 10762 | -4/Upper Caves | Learned Research stockpile data 10961 | -4/Upper Caves | Attracted the attention of an 0b10 checkpoint 11070 | -4/Upper Caves | Discovered new exit (range 10) 11083 | -4/Upper Caves | Entered another Upper Caves area 11083 | -4/Upper Caves | Spotted 65-DGD(f) 11085 | -4/Upper Caves | Encountered a Master Thief 11088 | -4/Upper Caves | Spotted R5-27Y(f) 11089 | -4/Upper Caves | Encountered a Master Thief 11093 | -4/Upper Caves | Destroyed R5-27Y(f) 11254 | -4/Upper Caves | Learned location of 1 exit from Research 11327 | -4/Upper Caves | Attacked by a delusional Derelict stockpiling parts 11451 | -4/Upper Caves | Attracted the attention of an 0b10 checkpoint 11666 | -4/Upper Caves | Discovered new exit (range 5) 11673 | -4/Upper Caves | Entered Zhirov 11673 | -4/Zhirov | Discovered new exit (range 3) 11703 | -4/Zhirov | Met Zhirov 11748 | -4/Zhirov | Zhirov requested help retrieving the SGEMP Prototype 11783 | -4/Zhirov | Found Alien Artifact 11783 | -4/Zhirov | Identified Integrated Reactor 11783 | -4/Zhirov | Installed Integrated Reactor, increased core energy generation (+10) 11861 | -4/Zhirov | Found Alien Artifact 11926 | -4/Zhirov | Entered Proximity Caves 12231 | -3/Proximity Caves | Spotted B-86 Titan 12269 | -3/Proximity Caves | Destroyed B-86 Titan 12577 | -3/Proximity Caves | Attracted the attention of an 0b10 outpost 13258 | -3/Proximity Caves | Discovered exit to Research (range 10) 13304 | -3/Proximity Caves | Entered Research 13304 | -3/Research | Evolved 2 slots: Utility x2 13305 | -3/Research | Identified exit to Armory 13308 | -3/Research | Loaded intel: 87 machine locations 13379 | -3/Research | Spotted B-86 Titan 13392 | -3/Research | Destroyed B-86 Titan 13610 | -3/Research | Entered Armory 13611 | -3/Armory | Loaded intel: 82 machine locations 13625 | -3/Armory | Found Fusion Bomb Launcher 13687 | -3/Armory | Identified Transdimensional Reconstructor 13687 | -3/Armory | Warped through subspace to slip node 13687 | -3/Armory | Discovered new exit (range 1) 13688 | -3/Armory | Entered Lab 13688 | -3/Lab | Discovered new exit (range 9) 13693 | -3/Lab | Hidden lab's door opened automatically 13693 | -3/Lab | Sensor layout match revealed 13694 | -3/Lab | Gained access to the hidden lab's interior 13695 | -3/Lab | Decrypted terminal 13698 | -3/Lab | Found Alien Artifact 13698 | -3/Lab | Identified Core Reset Matrix 13698 | -3/Lab | Used Core Reset Matrix 13702 | -3/Lab | Sensed 3 artifacts in vicinity 13708 | -3/Lab | Found Integrated Reactor 13708 | -3/Lab | Installed Integrated Reactor, increased core energy generation (+10) 13715 | -3/Lab | Found Core Expander 13715 | -3/Lab | Installed Core Expander, added new Weapon slot 13726 | -3/Lab | Found Prototype Energy Cannon 13726 | -3/Lab | Identified Warp Cannon 13729 | -3/Lab | Found Prototype Energy Gun 13729 | -3/Lab | Identified Tachyon Dispersion Ray 13740 | -3/Lab | Found Prototype Special Weapon 13740 | -3/Lab | Identified Gui. Remote Datajack 13747 | -3/Lab | Decrypted terminal 13747 | -3/Lab | Acquired modification code for an L2 power cell 13794 | -3/Lab | Found Prototype Hackware 13794 | -3/Lab | Identified Quantum Router 13809 | -3/Lab | Found Transdimensional Reconstructor 13852 | -3/Lab | Detected by scanners 13852 | -3/Lab | Discovered new exit (range 6) 13855 | -3/Lab | Entered Research 13855 | -2/Research | Warlord forces began assault on 0b10 13855 | -2/Research | Evolved 2 slots: Propulsion x1, Utility x1 13926 | -2/Research | Identified exit to Quarantine 13965 | -2/Research | Research machine network offline 14062 | -2/Research | Entered Quarantine 14063 | -2/Quarantine | Detected hypermatrix surge 14063 | -2/Quarantine | Sensed 14 artifacts in vicinity 14074 | -2/Quarantine | Found Phase Armor 14082 | -2/Quarantine | Identified exit to Access 14113 | -2/Quarantine | Build established: Wizard-Mutant 14176 | -2/Quarantine | Found Subatomic Replicator 14191 | -2/Quarantine | Found Phase Redirector 14203 | -2/Quarantine | Spotted Fortress 14230 | -2/Quarantine | Discovered new exit (range 6) 14232 | -2/Quarantine | Entered Section 7 14233 | -2/Section 7 | Sensed 25 artifacts in vicinity 14318 | -2/Section 7 | Spotted S7 Guard 14323 | -2/Section 7 | Found Navigation Efficiency Matrix 14324 | -2/Section 7 | Installed Navigation Efficiency Matrix, process failed with unexpected side effects 14369 | -2/Section 7 | Lost 3 parts (1n1u1w) 14388 | -2/Section 7 | Found Integrated Mediator 14389 | -2/Section 7 | Installed Integrated Mediator, increased core attachment efficiency 14471 | -2/Section 7 | Spotted B-90 Cyclops 14484 | -2/Section 7 | Warped through subspace 14492 | -2/Section 7 | Found Spacefold Activator 14496 | -2/Section 7 | Spotted Alpha 7 14496 | -2/Section 7 | Spotted Alpha 7 14499 | -2/Section 7 | Destroyed 7 combat bots 14511 | -2/Section 7 | Spotted Executioner 14511 | -2/Section 7 | Spotted Executioner 14525 | -2/Section 7 | Found Terrabomb 14527 | -2/Section 7 | Found Terrabomb 14531 | -2/Section 7 | Found Transdimensional Reconstructor 14535 | -2/Section 7 | Lost 9 parts (1p2n5u1w) 14544 | -2/Section 7 | Spotted Striker 14556 | -2/Section 7 | Intercept squad dispatched 14556 | -2/Section 7 | Spotted Executioner 14556 | -2/Section 7 | Spotted Executioner 14556 | -2/Section 7 | Spotted Striker 14590 | -2/Section 7 | Build established: Hacker-Mutant 14626 | -2/Section 7 | Warped through subspace 14631 | -2/Section 7 | Spotted B-99 Colossus 14649 | -2/Section 7 | Found LRC Energy Well 14650 | -2/Section 7 | Found LRC Matter Compressor 14650 | -2/Section 7 | Installed LRC Matter Compressor, increased matter storage capacity (+125) 14653 | -2/Section 7 | Found LRC Energy Well 14653 | -2/Section 7 | Installed LRC Energy Well, increased energy storage capacity (+250) 14655 | -2/Section 7 | Installed LRC Energy Well, increased energy storage capacity (+250) 14709 | -2/Section 7 | Found Integrated Reactor 14710 | -2/Section 7 | Installed Integrated Reactor, increased core energy generation (+10) 14732 | -2/Section 7 | Search patrols dispatched 14761 | -2/Section 7 | Modified the L2 Power Cell with code from the hidden lab 14773 | -2/Section 7 | Core integrity fell below 50% 14782 | -2/Section 7 | Intercept squad dispatched 14786 | -2/Section 7 | Spotted Tracker 14786 | -2/Section 7 | Spotted Tracker 14786 | -2/Section 7 | Spotted Combat Programmer 14788 | -2/Section 7 | Discovered exit to Access (range 20) 14817 | -2/Section 7 | Lost 6 parts (3n3u) 14877 | -2/Section 7 | Core integrity fell below 20% 14888 | -2/Section 7 | Spotted Combat Programmer 14890 | -2/Section 7 | Used Terrabomb 14890 | -2/Section 7 | Destroyed by Combat Programmer with EMDS Last Messages --------------- 14848_ System corrupted: Matter fused (-7). 14870_ 1KFXROJCR= RSXDKQEFVQDHG9 14874_ Navigation matrix triggers involuntary quantum shift. 14874_ Spacefolded through Reinforced Barrier. 14876_ Penetrated by Slug. 14876_ Slug penetrates Construction Supplies. 14878_ Penetrated by Slug. 14879_ Com. Wheel destroyed. 14879_ Penetrated by Slug. 14879_ Slug penetrates Construction Supplies. 14880_ U-05 Engineer lays Concrete. 14886_ K-01 Serf collects debris. 14888_ Spacefolded through Reinforced Barrier. 14890_ Navigation matrix triggers involuntary quantum shift. 14890_ Terrabomb activated. 14890_ Penetrated by Slug. 14890_ Penetrated by EMDS Slug. [Achievement: I Was Wrong!] Map ----- +----------------------------------------------------+ | ????????########?????????# " | | ?????????????????????????# """""" " | | ?????? #????????????????# """"" " | | ????!?" #????????????????# "" | | ??????" #????????????????#" | | ?????? #????????????????#" | | ?????? #?????????????? ; """""" | | ?????? #???????????? ;" """"" | | ?????? #???????????? ; " "" | | ???????##???????????? ;" " | | ?????? #???????????? ;" """ | | ?????? #????????????? ;" " | | #########??????? ?? ;" | | #??######;;;#; ;" | | #??# ;;; ;" | | """"" #??# ""; ; " " | | """"" #??# """ """ " ; ; """ | | " " # ; """ """ "; ;" """ " "" | | " " ###; """ """ ""; ;"" """ | | # # p "; ;""" " " | | ;;;; s ;;; ;""" """" " | | ; ; ; ;;;""" """ | | ####+##;;;;;;;;;;;+;;;;;7; """ " | | R c s / | | / | | g @ """"" | | R A / k """?" | | ####+#;;;;;+;;;;;;;;;;;;7; "?" | | ?????? ;! ; ;;;""" " """ | | ?????? ; ; ;""" | | ???? ; """ """ ; ;""" | | "?? # """ """ ; ;"" | | ?? # """ """ ; ;" | | ! "?????????? ; ; """""""""""" | | ?????????? ;; ; """""""""""" | | ?????????? ! Y; ;;;#;;;;;############ ## | | ???????????;;;;;;;;;; ?????? ???????????# #? | | ???????????;;; ;; ??????????????????####? | | ??????????? ;; T Y; ??????????????????????? | | ??????????? ;; ;; ??????????????????????? | | ?????????????? ; ??????????????????????? | | ???????????????? ; ??????????????????????? | | ??????????????????" ; ??????????????????????? | | ##+#########?????????; ????????????########### | | ???????????? ????????????# | | ?????????????????????????????# | | ?????????????????????????????# ######## | | ??????????????????????????##### #??????? | | ##/#######??????????????????????####!!!# #####??? | | #?# ???????????????????#" """"" """"#??? | +----------------------------------------------------+ Best States ------------- Heat Dissipation 97 Coolant Potential 180 Energy Generation 65 Energy Capacity 1050 Matter Stores 300 Matter Capacity 425 Sight Range 22 Robot Scan Range 18 Terrain Scan Range 16 Terrain Scan Density 10 ECM Strength 2 Jamming Range 14 Cloak Strength 4 Armor Coverage 750 Resistance: KI 25 Resistance: TH 50 Point Defense Rating 80 Weapon Cycling 20 Melee Speed Boost 30 Evasion (%) 63 Melee Accuracy 8 Core Analysis 6 Recoil Reduction 5 Offensive Hacking 35 Defensive Hacking 37 Authchip Count 3 Item Schematics ----------------- None Robot Schematics ------------------ None Fabricated ------------ Nothing Alien Tech Used ----------------- Integrated Reactor Transdimensional Reconstructor Core Reset Matrix Core Expander Phase Armor Phase Redirector Navigation Efficiency Matrix Integrated Mediator Spacefold Activator LRC Matter Compressor LRC Energy Well Terrabomb Achievements -------------- Big Bang Cya! Decrypted! I Was Wrong! Nope Challenges ------------ None Game ------ Seed WeaponsEnhancedCorpse Manual? 0 Play Time 03:46:11 Cumulative 223.5 hours Start 2024.10.03 @ 01:20:59 End 2024.10.03 @ 21:38:17 Sessions 5 Manual Loads 0 Difficulty Rogue Special Mode None Game No. 183 Rogue 174 Adventurer 9 Explorer 0 Win Type - Total 1 Types 1/0/0/0/0/0/0/0/0 Lore% 77 Gallery% 72 Achievement% 60 Wizard Run 0 Options --------- Layout 1 ASCII 0 Keyboard 0 Movement Numpad Keybinds 0 Fullscreen 1 Font 24/Smallcaps Map View 50x35 Zoom Use 0% Tactical HUD 1 Map Filters NONE Filters NONE Steam 1 RUN: b130a6f2-addd-43ce-ad2d-7ec95cfd4345